Cogmind - Beta 17 @@@ ROGUE MODE // 2026.07.14 @ 19:27:32 Player: 3.14 Result: Destroyed by Y-72 Warden with Enhanced Quantum Rifle Performance ------------- Evolutions (8) 4000 Regions Visited (14) 2800 Robots Destroyed (106) 530 Value Destroyed (4453) 4453 Prototype IDs (22) 440 Alien Tech Used (0) 0 Bonus (13671) 13671 TOTAL SCORE: 25894 Bonus ------- High Alert Combat Kills 117 Follower Combat Kills 554 Prayed to X0-1V1 5000 Major X0-1V1 Interference 6600 Entered Garrisons 400 Used RIF Installer 500 Entered DSFs 500 Cogmind --------- Core Integrity 0/1000 Matter 197/300 Energy 499/500 System Corruption 31% Temperature Danger (438) Movement Core (50) Location -2/Research Parts ------- > --- POWER (2) -------- (None) > --- PROPULSION (8) --- (None) > --- UTILITY (10) ----- (None) > --- WEAPON (3) ------- (None) > --- INVENTORY (5) ---- Particle Reactor Experimental Matter Compressor (500) Improved Arc Thrower Phase Gun Peak State ------------ > --- POWER ------------ Light Quantum Reactor Light Quantum Reactor > --- PROPULSION ------- Myomer Leg Myomer Leg Myomer Leg Myomer Leg Myomer Leg Myomer Leg Improved Gyrokinetic Inverter > --- UTILITY ---------- Advanced Heat Sink Advanced Sensor Array Advanced Signal Interpreter Improved Targeting Computer Advanced Melee Analysis Suite Advanced Target Analyzer Core Analyzer Heavy Armor Plating X0-1V1's Piety Tracker > --- WEAPON ----------- Coil Gun Centrium Greatsword Heavy Scimitar of Distortion > --- INVENTORY -------- Light Antimatter Reactor Advanced Sensor Array Hacking Suite Heavy Machine Gun [Rating: 151] Favorites ----------- Power Light Ion Engine Engine Light Ion Engine Power Core Light Nuclear Core Reactor Particle Reactor Propulsion Light Treads Treads Light Treads Leg Myomer Leg Wheel Overtuned Scrapsphere Hover Unit Combat Airjet Flight Unit Electron Diverter Utility X0-1V1's Piety Tracker Device X0-1V1's Piety Tracker Storage Large Storage Unit Processor Advanced Melee Analysis Suite Hackware Hacking Suite Protection Backup Plating III Weapon Coil Gun Energy Gun Medium Laser Energy Cannon Cooled Plasma Cannon Ballistic Gun Coil Gun Launcher Smartbomb Launcher Impact Weapon Power Maul Slashing Weapon Ripper Build | -11 -10 -10 -8 -8 -6 -5 -4 -4 -3 -3 -3 -2 -2 -2 ------- Run | Yrd Mat Sub Rec Scr Fac Fac Fac DSF Res Gar Res Res Gar Res Slots Evolved 16 | . . . . . 8 2 2 . 2 . . 2 . . Power 1 | . . . . . 1 . . . . . . . . . Propulsion 5 | . . . . . 2 1 1 . 1 . . . . . Utility 8 | . . . . . 4 1 1 . 1 . . 1 . . Weapon 2 | . . . . . 1 . . . . . . 1 . . Parts Attached 147 | 7 6 1 3 9 34 6 6 3 2 17 4 14 2 33 Power 16 | 1 1 . 1 1 4 . . . . 2 1 2 . 3 Engine 6 | 1 . . 1 1 3 . . . . . . . . . Core 2 | . 1 . . . 1 . . . . . . . . . Reactor 8 | . . . . . . . . . . 2 1 2 . 3 Propulsion 46 | 2 1 . 1 3 11 3 3 3 1 3 . 8 . 7 Treads 6 | 2 1 . 1 . . . . . . . . . . 2 Leg 15 | . . . . 1 3 . . . . . . 6 . 5 Wheel 2 | . . . . 2 . . . . . . . . . . Hover 23 | . . . . . 8 3 3 3 1 3 . 2 . . Flight . | . . . . . . . . . . . . . . . Utility 58 | 2 3 . . 3 14 2 3 . 1 8 2 3 1 16 Device 22 | 1 1 . . . 4 . 1 . . 4 . . 1 10 Storage 6 | 1 1 . . 1 1 . . . . . . . . 2 Processor 18 | . 1 . . . 5 1 1 . . 3 2 2 . 3 Hackware 5 | . . . . 2 . 1 . . 1 . . . . 1 Protection 7 | . . . . . 4 . 1 . . 1 . 1 . . Artifact . | . . . . . . . . . . . . . . . Weapon 27 | 2 1 1 1 2 5 1 . . . 4 1 1 1 7 Energy Gun 6 | 1 . . . . 1 . . . . . . . . 4 Energy Cannon 3 | . . . . . 1 1 . . . . . . . 1 Ballistic Gun 10 | 1 1 . . 2 . . . . . 4 . 1 . 1 Ballistic Cannon . | . . . . . . . . . . . . . . . Launcher 1 | . . . . . 1 . . . . . . . . . Special Weapon . | . . . . . . . . . . . . . . . Impact Weapon 2 | . . . . . 2 . . . . . . . . . Slashing Weapon 5 | . . 1 1 . . . . . . . 1 . 1 1 Piercing Weapon . | . . . . . . . . . . . . . . . Special Melee Weapon . | . . . . . . . . . . . . . . . Unidentified Prototypes 9 | . 1 . . . 3 . . . . 1 . 3 . 1 Corrupted Parts 3 | . . . . 2 1 . . . . . . . . . System Corruption 7 | . . . . 5 2 . . . . . . . . . Parts Lost 49 | . 1 . 4 1 12 4 . 2 . 4 . . 2 19 Power 8 | . 1 . 1 1 4 . . . . . . . . 1 Propulsion 14 | . . . 2 . 3 2 . . . 3 . . 1 3 Utility 19 | . . . . . 4 1 . 2 . . . . 1 11 Weapon 8 | . . . 1 . 1 1 . . . 1 . . . 4 Highest Loss Streak 9 | . 1 . 4 1 4 2 . 2 . 2 . . 2 9 To Critical Strikes . | . . . . . . . . . . . . . . . Average Backups 8 | 2 8 10 13 16 8 6 6 6 4 4 3 4 4 4 Power . | . 1 1 1 . . . . . . . 1 1 1 . Propulsion 1 | 1 1 2 1 1 4 3 3 3 2 1 . . . . Utility 3 | . 3 4 5 7 1 1 2 1 1 1 . 1 2 1 Weapon 2 | . 2 3 6 5 2 1 1 . 1 1 2 1 1 1 Tool/Special . | . . . . . . . . . . . . . . . Unused Backups 27 | . 2 . 1 11 2 . . 4 . 4 1 . . 2 Power 2 | . . . . . . . . . . 1 . . . 1 Propulsion 9 | . 1 . . 3 1 . . 2 . 1 1 . . . Utility 10 | . . . 1 6 . . . 1 . 2 . . . . Weapon 6 | . 1 . . 2 1 . . 1 . . . . . 1 Tool/Special . | . . . . . . . . . . . . . . . Average Slot Usage (%) 82 | . 94 100 90 82 67 71 65 72 78 91 93 91 43 68 Engine 3 | . 2 . 7 13 1 . . . . . . . . . Core 3 | . 10 14 5 . 1 . . . . . . . . . Reactor 2 | . . . . . . . . . . 8 9 8 3 6 Treads 13 | . 28 28 27 20 . . . . . . . . . 2 Leg 3 | . . . . . 1 . . . . . . 9 10 19 Hover 8 | . . . . . 20 26 19 27 33 30 33 20 4 1 Device 9 | . . 14 14 13 1 9 7 10 9 9 12 11 6 18 Storage 8 | . 14 14 14 13 5 5 5 1 . . . . . 1 Processor 8 | . 8 . . . 15 21 17 12 9 15 22 26 8 7 Hackware 1 | . . . . . 1 . 5 5 7 7 3 . . . Protection 1 | . . . . . 5 . 3 5 4 4 1 1 1 . Energy Gun 1 | . 6 . . . . . . . . . . . . 2 Ballistic Gun 8 | . 21 24 4 1 . . . 3 9 13 6 4 1 1 Impact Weapon 1 | . . . . . 7 2 . . . . . . . . Slashing Weapon 4 | . . 3 15 12 . . . . . . 3 7 5 2 Peak Build Rating 151 | 7 22 25 27 28 70 72 79 89 98 119 128 151 151 151 Average Rating 51 | 5 8 22 23 24 46 64 67 78 96 111 123 141 66 108 On Entrance 59 | . 7 22 25 23 11 50 53 76 88 98 118 128 151 40 Avg Prop Armor Cover (%) 10 | . . . . 11 14 . 8 . . . . 1 6 6 Naked Turns 15 | . . . . 9 . . . . . . . . 3 3 Heaviest Build 88 | 13 29 30 32 88 37 24 27 27 27 67 67 67 64 79 Greatest Support 193 | 40 40 40 40 40 73 48 58 72 84 84 81 150 150 193 Greatest Overweight (x) 28 | . . . 1 28 1 . . . . 1 . . 1 2 Average Overweight (x) . | . . . . 2 . . . . . . . . . . Largest Inventory Capacity 25 | 8 15 15 15 25 10 10 10 10 5 5 5 5 5 10 Average Capacity 11 | 7 11 15 15 23 9 10 10 6 5 5 5 5 5 7 Most Carried 21 | 6 11 11 15 21 10 8 8 8 4 5 5 5 5 6 Average Carried 8 | 3 8 10 13 16 8 6 6 5 4 4 3 4 4 4 Final Capacity 15 | 8 15 15 15 5 10 10 10 5 5 5 5 5 5 5 Final Carried 15 | 6 10 11 15 3 9 6 8 5 4 5 4 4 4 4 Transmogrified Parts 9 | . . . . . . . . . . . . . . 9 Integrity Recovered 102 | . . . . . . . . . . . . . . 102 Class Distribution -------------------- 65% | Mutant 12% | Scavenger-Mutant 8% | Scavenger-Gunner 5% | Scavenger-Gladiator 4% | Gladiator Dominant Class ---------------- Mutant | -10/Materials Mutant | -10/Subcaves Mutant | -8/Recycling Mutant | -8/Scraptown Mutant | -6/Factory Mutant | -5/Factory Mutant | -4/Factory Mutant | -4/DSF Hacker-Gunner | -3/Research Scavenger-Gunner | -3/Garrison Scavenger-Gunner | -3/Research Scavenger-Gladiator | -2/Research Mutant | -2/Garrison Mutant | -2/Research Resources | -11 -10 -10 -8 -8 -6 -5 -4 -4 -3 -3 -3 -2 -2 -2 ----------- Run | Yrd Mat Sub Rec Scr Fac Fac Fac DSF Res Gar Res Res Gar Res Matter Collected 3806 | 291 220 57 55 83 849 57 . . . 1235 . 110 . 849 Remotely 136 | . . . . . . . . . . . . . . 136 Salvage Created 6879 | 123 715 89 466 90 1497 216 . . . 1379 . 1207 139 958 Parts 258 | 11 38 5 18 7 32 10 . . . 59 . 37 11 30 Haulers Intercepted 6 | . 2 . . . 2 . . . . . . . . 2 Recyclers Shooed 5 | . 2 . . . . . . . . . . . . 3 Parts Field Recycled . | . . . . . . . . . . . . . . . Retrieved Matter . | . . . . . . . . . . . . . . . Parts Self-Destructed 9 | . . 9 . . . . . . . . . . . . Prevented . | . . . . . . . . . . . . . . . Parts Restored . | . . . . . . . . . . . . . . . Kills | -11 -10 -10 -8 -8 -6 -5 -4 -4 -3 -3 -3 -2 -2 -2 ------- Run | Yrd Mat Sub Rec Scr Fac Fac Fac DSF Res Gar Res Res Gar Res Combat Hostiles Destroyed 74 | . 15 2 3 1 18 3 . . . 15 . 8 2 7 Melee 29 | . . 2 3 . 10 1 . . . . . 8 1 4 Guns 31 | . 15 . . 1 . . . . . 13 . . . 2 Cannons 4 | . . . . . . 1 . . . 1 . . 1 1 Classes Destroyed 18 | 2 4 1 3 1 3 3 . . . . . 1 . . Worker 5 | . 2 . . . 2 . . . . . . 1 . . Builder 3 | . . . 1 . 1 . . . . . . . . 1 Tunneler 4 | 3 . . . . 1 . . . . . . . . . Hauler 6 | . 2 . . . 2 . . . . . . . . 2 Recycler 13 | 1 1 . 4 . 3 . . . . . . 3 . 1 Mechanic 1 | . . . . . . . . . . . . 1 . . Operator 1 | . . . . . . 1 . . . . . . . . Drone 1 | . . . 1 . . . . . . . . . . . Swarmer 11 | . 6 . . . 2 . . . . 3 . . . . Grunt 38 | . 9 . . . 10 . . . . 8 . 7 1 3 Brawler 2 | . . . . . 1 . . . . . . 1 . . Duelist 1 | . . . . . . 1 . . . . . . . . Sentry 4 | . . . 2 . . . . . . 1 . . . 1 Specialist 2 | . . . . . . 2 . . . . . . . . Hunter 6 | . . . . . 2 . . . . 2 . . . 2 Programmer 6 | . . . . . 3 . . . . 1 . . 1 1 Subdweller 2 | . . 2 . . . . . . . . . . . . Elite 1 | . . . . 1 . . . . . . . . . . Best Kill Streak 8 | 3 4 2 3 1 8 4 . . . 4 . 5 2 3 Combat Bots Only 7 | . 4 2 1 1 7 2 . . . 4 . 4 2 3 Max Kills in Single Turn 2 | 1 1 1 1 1 1 1 . . . 2 . 1 1 1 Gunslinging 1 | . . . . . . . . . . 1 . . . . Exploded . | . . . . . . . . . . . . . . . Melee 1 | . . 1 1 . 1 1 . . . . . 1 1 1 Uniques/NPCs Destroyed . | . . . . . . . . . . . . . . . Combat | -11 -10 -10 -8 -8 -6 -5 -4 -4 -3 -3 -3 -2 -2 -2 -------- Run | Yrd Mat Sub Rec Scr Fac Fac Fac DSF Res Gar Res Res Gar Res Hostile Shots Fired 743 | . 51 5 71 17 197 45 . 9 . 135 . 53 60 100 Missed 274 | . 15 . 24 3 76 22 . 4 . 62 . 17 24 27 Hits 469 | . 36 5 47 14 121 23 . 5 . 73 . 36 36 73 Melee 42 | . . . 28 . 10 1 . . . 3 . . . . Projectile 427 | . 36 5 19 14 111 22 . 5 . 70 . 36 36 73 AOE 3 | . . . . 1 1 . . . . . . . 1 . Critical Strikes 23 | . . . . . 6 1 . 1 . 7 . 1 1 6 Damage Taken 10655 | . 414 94 357 281 2213 505 . 365 . 1540 . 823 860 3203 Core 2292 | . 20 25 71 126 495 179 . . . 187 . 72 570 547 Absorbed by Shields 96 | . . . . . . . . . . 10 . . 22 64 Ignored by Resistances 221 | . . . . . 97 . . . . . . . . 124 Regen/Repaired (Parts) 120 | . 120 . . . . . . . . . . . . . Core Remaining (%) 66 | 100 . . . 25 23 72 . 100 . . 78 . . . Volleys Fired 209 | 7 57 2 . 7 1 20 3 . . 51 . . . 61 Largest 4 | 2 2 2 . 2 1 1 1 . . 3 . . . 4 Hottest 352 | 70 70 40 . 43 35 98 35 . . 95 . . . 352 Shots Fired 393 | 14 111 4 . 14 1 20 3 . . 145 . . . 81 Gun 302 | 14 111 4 . 14 . . . . . 133 . . . 26 Cannon 91 | . . . . . 1 20 3 . . 12 . . . 55 Launcher . | . . . . . . . . . . . . . . . Special . | . . . . . . . . . . . . . . . Kinetic 242 | 7 72 4 . 14 . . . . . 133 . . . 12 Thermal 149 | 7 39 . . . 1 20 3 . . 12 . . . 67 Explosive . | . . . . . . . . . . . . . . . Electromagnetic 2 | . . . . . . . . . . . . . . 2 Robot Hit Streak 24 | 2 13 4 . 5 . 3 . . . 24 . . . 6 Robot Miss Streak 4 | 2 4 . . 2 . 3 . . . 4 . . . 2 Penetration Max 1 | . . . . . . . . . . 1 . . . . Secondary Targets 6 | . 3 . . . . . . . . 3 . . . . Max Gunslinging Chain 1 | . 1 . . . . . . . . 1 . . . . Shots Hit Robots 379 | 7 70 7 22 8 60 11 . . . 106 . 34 9 45 Core Hits 160 | 5 35 2 6 3 10 5 . . . 54 . 15 3 22 Critical Kills 4 | . . . . 1 2 . . . . 1 . . . . Critical Parts Destroyed 23 | . . . . . 17 1 . . . 5 . . . . Critical Strikes 54 | . 4 . 3 1 20 1 . . . 6 . 10 . 9 Burn 5 | . 4 . . . . . . . . . . . . 1 Meltdown 1 | . . . . . . . . . . 1 . . . . Destroy 6 | . . . . 1 . . . . . 5 . . . . Smash 21 | . . . . . 20 1 . . . . . . . . Sever 21 | . . . 3 . . . . . . . . 10 . 8 Melee Attacks 230 | . . 15 35 . 85 5 . . . . 1 43 10 36 Impact 90 | . . . . . 85 5 . . . . . . . . Slashing 140 | . . 15 35 . . . . . . . 1 43 10 36 Piercing . | . . . . . . . . . . . . . . . Sneak Attacks 30 | . . . 7 . 12 . . . . . . 8 . 3 Combat Hostiles 7 | . . . 1 . 2 . . . . . . 3 . 1 Follow-up Attacks 9 | . . . 2 . 1 . . . . . . 6 . . Damage Inflicted 14286 | 90 874 162 1075 109 3738 509 . . . 2553 . 2791 548 1837 Guns 3777 | 90 861 45 . 109 . . . . . 2296 . . . 376 Cannons 938 | . . . . . . 225 . . . 257 . . 71 385 Explosions . | . . . . . . . . . . . . . . . Melee 9535 | . . 117 1075 . 3738 278 . . . . . 2791 477 1059 Ramming 36 | . 13 . . . . 6 . . . . . . . 17 Kinetic 3229 | 52 497 45 . 109 . . . . . 2296 . . 71 159 Thermal 1486 | 38 364 . . . . 225 . . . 257 . . . 602 Explosive . | . . . . . . . . . . . . . . . Electromagnetic . | . . . . . . . . . . . . . . . Impact 4016 | . . . . . 3738 278 . . . . . . . . Slashing 5519 | . . 117 1075 . . . . . . . . 2791 477 1059 Piercing . | . . . . . . . . . . . . . . . Highest Corruption 31 | . . . 11 5 21 9 . . . . . 2 3 31 Average Corruption 10 | . . . 11 4 8 8 . . . . . 2 1 12 Corruption Purged . | . . . . . . . . . . . . . . . Corruption Blocked . | . . . . . . . . . . . . . . . Effects 44 | . . . 1 . 16 3 . . . . . 1 . 23 Message Errors 6 | . . . . . 2 . . . . . . . . 4 Matter Fused 14 | . . . . . 5 2 . . . . . 1 . 6 Heat Flow Errors 6 | . . . . . 2 1 . . . . . . . 3 Energy Discharges 4 | . . . 1 . . . . . . . . . . 3 Parts Rejected 2 | . . . . . 1 . . . . . . . . 1 Parts Fused 1 | . . . . . 1 . . . . . . . . . Data Loss (minor) 4 | . . . . . 2 . . . . . . . . 2 Data Loss (major) 1 | . . . . . 1 . . . . . . . . . Alerts 1 | . . . . . 1 . . . . . . . . . Misdirections 2 | . . . . . 1 . . . . . . . . 1 Weapon Failures 3 | . . . . . . . . . . . . . . 3 Overload Shots . | . . . . . . . . . . . . . . . Overflow Damage 2136 | . . . 148 . 1534 67 . . . . . 299 19 69 Projectiles 21 | . . . . . 8 . . . . . . . . 13 Explosions . | . . . . . . . . . . . . . . . Melee 2115 | . . . 148 . 1526 67 . . . . . 299 19 56 Knockbacks 14 | . . . . . 12 2 . . . . . . . . Impact 13 | . . . . . 11 2 . . . . . . . . Kinetic . | . . . . . . . . . . . . . . . Secondary 1 | . . . . . 1 . . . . . . . . . Self-Inflicted Damage 3 | . . . . . . 3 . . . . . . . . Shots . | . . . . . . . . . . . . . . . Rammed 6 | . 5 . . . . 1 . . . . . . . . Targets Rammed 9 | . 7 . . . . 1 . . . . . . . 1 Kicked 1 | . . . . . . . . . . . . . . 1 Crushed 2 | . 2 . . . . . . . . . . . . . Highest Temperature 549 | 27 84 173 . 22 297 112 . . 9 238 8 219 . 549 Average Temperature 65 | 11 23 100 . 7 84 59 . . 7 60 5 54 . 117 Received Heat Transfer 2051 | . 168 . 81 93 489 91 . . . 214 . 225 81 609 Effects 6 | . . . . . . . . . . . . . . 6 Shutdowns 1 | . . . . . . . . . . . . . . 1 Interference 1 | . . . . . . . . . . . . . . 1 Matter Decay 1 | . . . . . . . . . . . . . . 1 Damage (major) 3 | . . . . . . . . . . . . . . 3 Siege Activations . | . . . . . . . . . . . . . . . Martial Activations . | . . . . . . . . . . . . . . . Shielding Activations . | . . . . . . . . . . . . . . . Robots Disrupted . | . . . . . . . . . . . . . . . Combat Hostiles . | . . . . . . . . . . . . . . . Robots Corrupted 12 | . . . . . 11 1 . . . . . . . . Combat Hostiles 9 | . . . . . 8 1 . . . . . . . . Parts Fried 20 | . . . . . 19 1 . . . . . . . . Impact Corruptions 47 | . . . . . 44 3 . . . . . . . . Robots Melted 1 | . . . . . . . . . . 1 . . . . Combat Hostiles 1 | . . . . . . . . . . 1 . . . . Parts Melted 7 | . 1 . . . . 1 . . . 3 . . . 2 Heat Transferred 2896 | 111 1369 . . . . 350 . . . 400 . . . 666 Parts Sabotaged 4 | . . . . . . 4 . . . . . . . . Parts Stolen . | . . . . . . . . . . . . . . . Parts Stripped . | . . . . . . . . . . . . . . . Power Chain Reactions . | . . . . . . . . . . . . . . . Alert | -11 -10 -10 -8 -8 -6 -5 -4 -4 -3 -3 -3 -2 -2 -2 ------- Run | Yrd Mat Sub Rec Scr Fac Fac Fac DSF Res Gar Res Res Gar Res Maximum Alert Level 2 | . . . 1 . 2 2 1 . . 2 1 . . . Low Security (%) 73 | 100 100 . 65 . 61 . . 100 100 25 . 100 100 100 Level 1 15 | . . . 34 . 22 7 100 . . 25 100 . . . Level 2 11 | . . . . . 15 92 . . . 49 . . . . Level 3 . | . . . . . . . . . . . . . . . Level 4 . | . . . . . . . . . . . . . . . Level 5 . | . . . . . . . . . . . . . . . High Security . | . . . . . . . . . . . . . . . Max Security . | . . . . . . . . . . . . . . . Peak Influence 682 | 10 142 . 285 . 682 644 293 179 97 532 304 186 129 136 Initial 321 | . . . 31 . . 321 293 179 97 65 299 171 91 72 Average 144 | 1 55 . 136 . 177 554 277 168 91 338 299 83 90 49 Influence Increases 4008 | 20 428 75 552 6 1001 488 23 15 10 507 15 270 98 500 Destroy 0b10 Robot/C 1560 | . 300 . 60 . 360 160 . . . 300 . 160 40 180 Destroy 0b10 Robot/NC 195 | 20 25 . 25 5 45 10 . . . 15 . 25 . 25 Destroy Leader 262 | . 64 . . . 84 12 . . . 20 . 20 10 52 Allied During Kill 40 | . . . . 1 . 26 . . . . . . . 13 Successful Hack 150 | . 39 . 51 . 12 . 4 . 10 . . 14 . 20 Select Force Hacks 210 | . . . 210 . . . . . . . . . . . Disable Machine 120 | . . . . . 30 45 15 . . . 15 15 . . Anti-Garrison Action 200 | . . . . . 150 . . . . 50 . . . . Destroy Structure 125 | . . . . . 3 8 4 . . 17 . 6 3 84 Partial Spotted 45 | . . . . . 15 . . . . . . 30 . . Lose Combat Pursuer 465 | . . 75 . . 180 45 . 15 . 105 . . 45 . Miscellaneous 636 | . . . 206 . 122 182 . . . . . . . 126 Influence Decreases 3908 | 20 420 18 455 168 345 545 366 97 97 62 243 452 91 529 Entered New Map 1471 | . . 4 34 162 . 335 306 77 77 22 233 133 31 57 Time Decay 1666 | 20 410 14 337 6 225 90 60 . 20 . 10 169 . 305 Lost Part 390 | . 10 . 40 . 120 40 . 20 . 40 . . 20 100 Lost Ally 140 | . . . . . . 80 . . . . . . 40 20 Purge Threat 241 | . . . 44 . . . . . . . . 150 . 47 Squads Dispatched 20 | . 2 . . . 7 6 . . . . . 1 . 4 Investigation 2 | . . . . . 1 1 . . . . . . . . Extermination 4 | . . . . . 2 . . . . . . 1 . 1 Reinforcement 10 | . 2 . . . 2 3 . . . . . . . 3 Assault 4 | . . . . . 2 2 . . . . . . . . Garrison . | . . . . . . . . . . . . . . . Intercept . | . . . . . . . . . . . . . . . Searches Triggered . | . . . . . . . . . . . . . . . Construction Impeded 1 | . . . . . . . . . . . . . . 1 Haulers Reinforced . | . . . . . . . . . . . . . . . Active Scanning Responses . | . . . . . . . . . . . . . . . Cargo Convoy Interrupts . | . . . . . . . . . . . . . . . Stealth | -11 -10 -10 -8 -8 -6 -5 -4 -4 -3 -3 -3 -2 -2 -2 --------- Run | Yrd Mat Sub Rec Scr Fac Fac Fac DSF Res Gar Res Res Gar Res Distress Signals 8 | . 4 . . . 1 2 . . . . . . . 1 Communications Jammed . | . . . . . . . . . . . . . . . Distress Signals . | . . . . . . . . . . . . . . . Times Spotted 229 | . 27 9 3 19 37 38 . 1 . 42 . 13 19 21 Peak Tracking Total 14 | . 4 5 1 13 8 14 . 1 . 13 . 4 9 6 Tactical Retreats 20 | . . 1 . 1 8 2 . 1 . 5 . . 2 . Traps | -11 -10 -10 -8 -8 -6 -5 -4 -4 -3 -3 -3 -2 -2 -2 ------- Run | Yrd Mat Sub Rec Scr Fac Fac Fac DSF Res Gar Res Res Gar Res Traps Triggered 9 | . 1 . . . . . . . . 7 . 1 . . Indirectly . | . . . . . . . . . . . . . . . Trap Hack Attempts . | . . . . . . . . . . . . . . . Triggered . | . . . . . . . . . . . . . . . Disarmed 4 | . 4 . . . . . . . . . . . . . Reprogrammed . | . . . . . . . . . . . . . . . Reused . | . . . . . . . . . . . . . . . Traps Extracted . | . . . . . . . . . . . . . . . Installed . | . . . . . . . . . . . . . . . Triggered . | . . . . . . . . . . . . . . . Machines | -11 -10 -10 -8 -8 -6 -5 -4 -4 -3 -3 -3 -2 -2 -2 ---------- Run | Yrd Mat Sub Rec Scr Fac Fac Fac DSF Res Gar Res Res Gar Res Machines Disabled 16 | . 1 . . 6 3 3 1 . . . 1 1 . . Max in Single Turn 1 | . 1 . . 1 1 1 1 . . . 1 1 . . Garrison Access 2 | . . . . . 1 1 . . . . . . . . Phase Generator 1 | . . . . . . . . . . 1 . . . . Machines Repaired . | . . . . . . . . . . . . . . . Machines Dismantled . | . . . . . . . . . . . . . . . Machines Sabotaged . | . . . . . . . . . . . . . . . Overloaded Fab Kills . | . . . . . . . . . . . . . . . Hacking | -11 -10 -10 -8 -8 -6 -5 -4 -4 -3 -3 -3 -2 -2 -2 --------- Run | Yrd Mat Sub Rec Scr Fac Fac Fac DSF Res Gar Res Res Gar Res Machines Accessed 34 | . 6 . 13 . 5 1 1 . 1 1 . 3 . 3 Terminals 16 | . 5 . 6 . . . 1 . . 1 . 1 . 2 Fabricators 5 | . . . . . 2 1 . . . . . 1 . 1 Repair Stations 2 | . 1 . . . 1 . . . . . . . . . Recycling Units 7 | . . . 7 . . . . . . . . . . . Scanalyzers 1 | . . . . . 1 . . . . . . . . . Garrison Access 3 | . . . . . 1 . . . 1 . . 1 . . Total Hacks 75 | . 14 . 26 . 14 2 1 . 2 4 . 7 . 5 Successful 44 | . 12 . 16 . 7 2 1 . 1 . . 2 . 3 Failed 31 | . 2 . 10 . 7 . . . 1 4 . 5 . 2 Catastrophic 5 | . . . 1 . 3 . . . . . . . . 1 Database Lockouts . | . . . . . . . . . . . . . . . Manual 33 | . 7 . 16 . 2 1 . . . . . 2 . 5 Terminals 42 | . 11 . 19 . . . 1 . . 4 . 4 . 3 Fabricators 12 | . . . . . 6 2 . . . . . 2 . 2 Repair Stations 6 | . 3 . . . 3 . . . . . . . . . Recycling Units 7 | . . . 7 . . . . . . . . . . . Scanalyzers 2 | . . . . . 2 . . . . . . . . . Garrison Access 6 | . . . . . 3 . . . 2 . . 1 . . Terminal Hacks 13 | . 5 . 4 . . . 1 . . . . 1 . 2 Part Schematic 2 | . . . 2 . . . . . . . . . . . Prototype ID Bank 4 | . 3 . 1 . . . . . . . . . . . Open DSF 1 | . . . . . . . 1 . . . . . . . Branch Access Points 1 | . . . . . . . . . . . . . . 1 Unreport Threat 3 | . . . 1 . . . . . . . . 1 . 1 Locate Traps 1 | . 1 . . . . . . . . . . . . . Disarm Traps 1 | . 1 . . . . . . . . . . . . . Fabricator Hacks 5 | . . . . . 4 1 . . . . . . . . Load Schematic 3 | . . . . . 2 1 . . . . . . . . Build 2 | . . . . . 2 . . . . . . . . . Repair Station Hacks 2 | . 2 . . . . . . . . . . . . . Scan Component 1 | . 1 . . . . . . . . . . . . . Repair 1 | . 1 . . . . . . . . . . . . . Recycling Unit Hacks . | . . . . . . . . . . . . . . . Scanalyzer 2 | . . . . . 2 . . . . . . . . . Insert Component 1 | . . . . . 1 . . . . . . . . . Analyze 1 | . . . . . 1 . . . . . . . . . Garrison Access Hacks 2 | . . . . . . . . . 1 . . 1 . . Unlock Access 2 | . . . . . . . . . 1 . . 1 . . Unauthorized Hacks 20 | . 5 . 12 . 1 1 . . . . . . . 1 Terminals 10 | . 5 . 5 . . . . . . . . . . . Skim 10 | . 5 . 5 . . . . . . . . . . . Fabricators 3 | . . . . . 1 1 . . . . . . . 1 Liberate 3 | . . . . . 1 1 . . . . . . . 1 Repair Stations . | . . . . . . . . . . . . . . . Recycling Units 7 | . . . 7 . . . . . . . . . . . Tunnel 7 | . . . 7 . . . . . . . . . . . Scanalyzers . | . . . . . . . . . . . . . . . Garrison Access . | . . . . . . . . . . . . . . . Data Cores Recovered . | . . . . . . . . . . . . . . . Used . | . . . . . . . . . . . . . . . Hacking Detections 20 | . 4 . 6 . 3 1 1 . . 1 . 2 . 2 Full Trace Events 2 | . . . . . 1 . . . . 1 . . . . Feedback Events . | . . . . . . . . . . . . . . . Feedback Blocked . | . . . . . . . . . . . . . . . Robot Schematics Acquired . | . . . . . . . . . . . . . . . Robots Built . | . . . . . . . . . . . . . . . Authchips . | . . . . . . . . . . . . . . . Time . | . . . . . . . . . . . . . . . Total Robot Build Rating . | . . . . . . . . . . . . . . . Part Schematics Acquired 3 | . . . 2 . 1 . . . . . . . . . Parts Built 4 | . . . . . 4 . . . . . . . . . Authchips 2 | . . . . . 2 . . . . . . . . . Time 56 | . . . . . 56 . . . . . . . . . Total Part Build Rating 16 | . . . . . 16 . . . . . . . . . Part Studies Acquired . | . . . . . . . . . . . . . . . Parts Repaired 1 | . 1 . . . . . . . . . . . . . Time 26 | . 26 . . . . . . . . . . . . . Parts Recycled . | . . . . . . . . . . . . . . . Recycled Matter . | . . . . . . . . . . . . . . . Retrieved Matter . | . . . . . . . . . . . . . . . Retrieved Components . | . . . . . . . . . . . . . . . Parts Scanalyzed 1 | . . . . . 1 . . . . . . . . . Part Schematics Acquired 1 | . . . . . 1 . . . . . . . . . Parts Damaged . | . . . . . . . . . . . . . . . Bothacking | -11 -10 -10 -8 -8 -6 -5 -4 -4 -3 -3 -3 -2 -2 -2 ------------ Run | Yrd Mat Sub Rec Scr Fac Fac Fac DSF Res Gar Res Res Gar Res Used RIF Installer 1 | . . . . . . . . . . . . . 1 . Robots Hacked . | . . . . . . . . . . . . . . . Non-combat . | . . . . . . . . . . . . . . . Combat . | . . . . . . . . . . . . . . . Robot Hacks Applied . | . . . . . . . . . . . . . . . Relay Couplers Released 6 | . . . . . 4 2 . . . . . . . . Machine Destruction 2 | . . . . . . 2 . . . . . . . . Programmers 4 | . . . . . 4 . . . . . . . . . Fabnet Peak Effective % . | . . . . . . . . . . . . . . . Robots Rewired . | . . . . . . . . . . . . . . . Allies Hacked 1 | . . . . . . . . . . . . . . 1 Hacks Repelled . | . . . . . . . . . . . . . . . Allies | -11 -10 -10 -8 -8 -6 -5 -4 -4 -3 -3 -3 -2 -2 -2 -------- Run | Yrd Mat Sub Rec Scr Fac Fac Fac DSF Res Gar Res Res Gar Res Total Allies 9 | . . . . 1 . 5 . . . . . . 2 1 Largest Group 3 | . . . . 1 . 3 . . . . . . 2 1 Highest-Rated Group 446 | . . . . 446 . 147 . . . . . . 190 119 Highest-Rated Ally 446 | . . . . 446 . 54 . . . . . . 95 119 Initial Warlord ECA Mod 1 | . . . . . . . . . . . 1 . . . Total Orders . | . . . . . . . . . . . . . . . Ally Attacks 49 | . . . . 24 . 16 . . . . . . 4 5 Total Damage 3052 | . . . . 1857 . 765 . . . . . . 102 328 Kills 20 | . . . . 11 . 6 . . . . . . . 3 Allies Corrupted 2 | . . . . . . 1 . . . . . . . 1 Allies Melted . | . . . . . . . . . . . . . . . X0-1V1 Amusement Gains 133 | . 19 . . 4 5 2 . 10 . 10 . 61 8 14 Good Acts 57 | . . . 2 . 5 18 2 1 . 9 1 4 9 6 Bad Acts 51 | . . 1 4 . 16 15 . . . 7 . 1 3 4 Intel | -11 -10 -10 -8 -8 -6 -5 -4 -4 -3 -3 -3 -2 -2 -2 ------- Run | Yrd Mat Sub Rec Scr Fac Fac Fac DSF Res Gar Res Res Gar Res Active Infowar (turns) 2740 | 52 877 . . . 217 154 80 51 40 123 27 254 42 823 Optics 67 | . . . . . 67 . . . . . . . . . Sensors 1648 | . . . . . 54 154 80 51 40 123 27 254 42 823 Terrain 13 | . . . . . . . . . . . . . . 13 Seismic 226 | 52 78 . . . 96 . . . . . . . . . T.N.C. 1103 | . 799 . . . . . . . . . . . . 304 Robot Analysis Total . | . . . . . . . . . . . . . . . Derelict Logs Recovered 1 | . . 1 . . . . . . . . . . . . Drone Launches . | . . . . . . . . . . . . . . . Drone Recoveries . | . . . . . . . . . . . . . . . Exploration | -11 -10 -10 -8 -8 -6 -5 -4 -4 -3 -3 -3 -2 -2 -2 ------------- Run | Yrd Mat Sub Rec Scr Fac Fac Fac DSF Res Gar Res Res Gar Res Turns Passed 7042 | 138 1383 358 973 805 978 196 130 51 40 636 37 343 120 854 Spaces Moved 4716 | 64 639 187 546 315 854 281 171 73 77 689 51 191 107 471 Core 172 | 1 . . . 42 107 . . . . . . . 15 7 Treads 1665 | 63 639 187 546 212 . . . . . . . . . 18 Legs 496 | . . . . . 12 . . . . . . 66 35 383 Wheels 61 | . . . . 61 . . . . . . . . . . Hover 2322 | . . . . . 735 281 171 73 77 689 51 125 57 63 Flight . | . . . . . . . . . . . . . . . Fastest Speed 40 | 50 160 160 160 50 46 40 63 52 48 45 45 45 50 50 Average Speed 106 | 158 160 160 160 243 60 41 65 59 48 49 45 70 84 113 Slowest Speed 1450 | 160 160 160 240 1450 120 66 86 63 48 122 45 120 120 160 Overloaded Moves . | . . . . . . . . . . . . . . . Propulsion Burnouts . | . . . . . . . . . . . . . . . Robots Hopped . | . . . . . . . . . . . . . . . Potential Cave-ins 45 | . . 1 . . . 2 . . . . . . 11 31 Cave-ins Triggered 6 | . . . . . . . . . . . . . . 6 Exploration Rate (%) 33 | 4 92 23 83 32 24 16 7 85 4 72 1 7 41 16 Regions Visited 14 Branch Regions 3 Pre-discovered Areas 10 | . . 1 9 . . . . . . . . . . . Known Exits Taken 9 | . 1 . 1 1 1 1 1 . 1 . 1 1 . . Unknown Exits Taken 2 | 1 . 1 . . . . . . . . . . . . Scrap Searched 3 | . . . . 3 . . . . . . . . . . Spaces Dug 45 | . . 5 . . 3 6 . . . . . 2 1 28 Terrain Destroyed 83 | . . 5 . . 3 7 2 . . 8 . 2 1 55 Melee 19 | . . 5 . . 3 . . . . . . 2 1 8 Projectile 63 | . . . . . . 7 2 . . 7 . . . 47 AOE . | . . . . . . . . . . . . . . . Terrain Rammed . | . . . . . . . . . . . . . . . Walls Destroyed . | . . . . . . . . . . . . . . . Machines Disabled . | . . . . . . . . . . . . . . . Actions | -11 -10 -10 -8 -8 -6 -5 -4 -4 -3 -3 -3 -2 -2 -2 --------- Run | Yrd Mat Sub Rec Scr Fac Fac Fac DSF Res Gar Res Res Gar Res Total 5978 | 83 888 217 591 339 1145 327 186 83 79 880 63 328 120 649 Wait 492 | . 167 8 1 . 137 11 . . . 75 . 62 . 31 Move 4700 | 63 638 186 545 314 853 280 170 72 77 686 50 191 106 469 Hop . | . . . . . . . . . . . . . . . Pick Up 70 | 6 6 1 7 7 20 2 3 3 . 5 2 4 1 3 Fast Attach 96 | 7 4 . 2 2 22 3 3 1 1 12 2 10 2 25 Attach 44 | . 1 . 1 4 8 5 3 . 1 2 2 6 1 10 Detach 9 | . 1 . . . . . 2 . . 1 . 1 . 4 Swap 29 | . 2 5 1 3 6 . . 2 . 5 1 2 . 2 Drop 72 | . 5 . 2 2 16 . 2 5 . 15 5 16 . 4 Fire 209 | 7 57 2 . 7 1 20 3 . . 51 . . . 61 Melee 217 | . . 15 32 . 82 5 . . . . 1 36 10 36 Ram 1 | . . . . . . 1 . . . . . . . . Kick 1 | . . . . . . . . . . . . . . 1 Crush 7 | . 7 . . . . . . . . . . . . . Escape Stasis 30 | . . . . . . . . . . 28 . . . 2 Rewire 1 | . . . . . . . . . . . . . . 1 Trap . | . . . . . . . . . . . . . . . Miscellaneous . | . . . . . . . . . . . . . . . Route ------- -11/Scrapyard -10/Materials (discovered 5 exits: *Mat x3 / [*Min] / *Sub) -10/Subcaves -8/Recycling (discovered 2 exits: *Fac / *Scr) -8/Scraptown -6/Factory (discovered 6 exits: *Fac x4 / Low x2) -5/Factory (discovered 3 exits: *Fac x2 / Upp) -4/Factory -4/DSF -3/Research -3/Garrison (discovered 3 exits: [*Res x3]) -3/Research -2/Research -2/Garrison (discovered 2 exits: *Res x2) -2/Research (discovered 2 exits: Tes x2) History --------- Turn | Location | Event 5 | -11/Scrapyard | Discovered new exit (range 16) 139 | -11/Scrapyard | Entered Materials 232 | -10/Materials | Discovered new exit (range 16) 314 | -10/Materials | Build established: Mutant 742 | -10/Materials | Discovered new exit (range 13) 910 | -10/Materials | Discovered new exit (range 5) 1039 | -10/Materials | Repaired Lgt. Treads 1163 | -10/Materials | Learned Storage emergency access door positions 1197 | -10/Materials | Learned Storage security intel 1214 | -10/Materials | Build established: Scavenger-Mutant 1219 | -10/Materials | Identified exit to Subcaves 1229 | -10/Materials | Learned 2 Mines zone layouts 1230 | -10/Materials | Learned Storage trap positions 1231 | -10/Materials | Loaded intel: 2 recycling unit locations 1232 | -10/Materials | Loaded intel: 8 trap records 1233 | -10/Materials | Learned 4 Recycling zone layouts 1236 | -10/Materials | Identified exit to Materials 1500 | -10/Materials | Prayed at D.C.S.S. Altar Unit 1522 | -10/Materials | Entered Subcaves 1535 | -10/Subcaves | Learned location of Zion (-6) 1672 | -10/Subcaves | Shifting Twisted Machinery released Ripper 1681 | -10/Subcaves | Shifting Twisted Machinery released Sub. Laser 1833 | -10/Subcaves | Build established: Mutant 1851 | -10/Subcaves | Discovered new exit (range 6) 1880 | -10/Subcaves | Entered Recycling 1881 | -8/Recycling | Identified exit to Scraptown 1942 | -8/Recycling | Identified exit to Factory 1942 | -8/Recycling | X0-1V1 revealed exit location to -6/Factory 2155 | -8/Recycling | Learned location of 2 exits from Lower Caves 2195 | -8/Recycling | Lgt. Nuclear Core reconfigured into Item Mimic 2243 | -8/Recycling | Learned location of Extension (-4) 2247 | -8/Recycling | X0-1V1 added 0b10 threat records associated with you (considerable) 2287 | -8/Recycling | Learned location of 1 exit from Extension 2292 | -8/Recycling | Learned Factory trap positions 2293 | -8/Recycling | Learned 12 Factory zone layouts 2311 | -8/Recycling | Learned location of 1 exit from Recycling 2334 | -8/Recycling | Lost 4 parts (1p2n1w) 2336 | -8/Recycling | Learned location of 2 exits from Factory 2754 | -8/Recycling | Core integrity restored by X0-1V1 (+55) 2785 | -8/Recycling | System corruption reached 10% 2816 | -8/Recycling | Scanned before Scraplab entrance 2839 | -8/Recycling | Entered Scraplab 2853 | -8/Recycling | Entered Scraptown 2853 | -8/Scraptown | System corruption cleaned by C-Scrubber 3112 | -8/Scraptown | Heard Great Nut preacher, LISTEN AND RECITE! 3122 | -8/Scraptown | Visited Fellowship of the Rings 3221 | -8/Scraptown | Visited IN-MT5's Study 3279 | -8/Scraptown | Visited Assassins FH 3311 | -8/Scraptown | Visited Bundlers 3576 | -8/Scraptown | Visited Shadow of the Wyrm 3602 | -8/Scraptown | X0-1V1 brought Wyrm Statue to life 3602 | -8/Scraptown | Attacked by Scraptown defenders 3617 | -8/Scraptown | Core integrity fell below 50% 3636 | -8/Scraptown | Released all parts (7) 3654 | -8/Scraptown | Discovered exit to Factory (range 5) 3658 | -8/Scraptown | Entered Factory 3658 | -6/Factory | Evolved 8 slots: Power x1, Propulsion x2, Utility x4, Weapon x1 3659 | -6/Factory | Identified exit to Lower Caves 3660 | -6/Factory | Identified exit to Factory 3662 | -6/Factory | Loaded intel: 80 trap records 3747 | -6/Factory | Fabricated Imp. Carbon-fiber Leg (x2) 3781 | -6/Factory | Fabricated Imp. Carbon-fiber Leg (x2) 3834 | -6/Factory | Energy capacity permanently improved by X0-1V1 (+400; -200 max core) 3936 | -6/Factory | X0-1V1 announced a LAN party 4166 | -6/Factory | Build established: Gladiator 4177 | -6/Factory | Lost 3 parts (2u1w) 4234 | -6/Factory | Destroyed 7 combat bots 4236 | -6/Factory | Core integrity fell below 50% 4301 | -6/Factory | X0-1V1 revealed exit location to -5/Factory 4488 | -6/Factory | Build established: Mutant 4567 | -6/Factory | X0-1V1 added 0b10 threat records associated with you (minor) 4587 | -6/Factory | System corruption reached 10% 4636 | -6/Factory | Entered another Factory area 4636 | -5/Factory | Evolved 2 slots: Propulsion x1, Utility x1 4641 | -5/Factory | Sight range permanently improved by X0-1V1 (+1; -150 max core) 4650 | -5/Factory | Identified exit to Factory 4650 | -5/Factory | X0-1V1 revealed exit location to -4/Factory 4650 | -5/Factory | X0-1V1 added 0b10 threat records associated with you (considerable) 4652 | -5/Factory | X0-1V1 announced a LAN party 4658 | -5/Factory | X0-1V1 released a cloud of subatomizers 4659 | -5/Factory | X0-1V1 sent hostile X-62 Marksman (x2) 4667 | -5/Factory | Lost 4 parts (2p1n1u) 4679 | -5/Factory | Sensors blinded by X0-1V1 4682 | -5/Factory | X0-1V1 redirected Transport squads to designated parking area 4683 | -5/Factory | X0-1V1 vaporized surrounding terrain (radius 24) 4689 | -5/Factory | X0-1V1 foreshadows a heat wave 4697 | -5/Factory | Identified exit to Upper Caves 4697 | -5/Factory | X0-1V1 revealed exit location to -5/Upper Caves 4703 | -5/Factory | X0-1V1 sent hostile Y-54 Guardian (x1) 4711 | -5/Factory | X0-1V1 sent you to a vault 4731 | -5/Factory | X0-1V1 turns hostiles against one another 4761 | -5/Factory | Ambient heat levels rising (+10) 4828 | -5/Factory | Discovered exit to Factory (range 5) 4832 | -5/Factory | Entered another Factory area 4832 | -4/Factory | Evolved 2 slots: Propulsion x1, Utility x1 4931 | -4/Factory | Energy generation permanently improved by X0-1V1 (+10; -100 max core) 4962 | -4/Factory | Identified exit to DSF 4962 | -4/Factory | Entered DSF 4984 | -4/DSF | Additional patrols routed to DSF 4989 | -4/DSF | Discovered new exit (range 14) 5013 | -4/DSF | Entered Research 5013 | -3/Research | Evolved 2 slots: Propulsion x1, Utility x1 5053 | -3/Research | Identified exit to Garrison 5053 | -3/Research | Entered Garrison 5095 | -3/Garrison | Triggered checkpoint 5099 | -3/Garrison | X0-1V1 sent hostile H-77 Assassin (x2) 5169 | -3/Garrison | Spotted B-86 Titan 5179 | -3/Garrison | Triggered checkpoint 5201 | -3/Garrison | Discovered new exit (range 8) 5205 | -3/Garrison | Attempted to access garrison exit controls, blocked by remote lockdown 5211 | -3/Garrison | Spotted B-90 Cyclops 5311 | -3/Garrison | X0-1V1 activates XOMVISION 5486 | -3/Garrison | Build established: Scavenger-Gunner 5487 | -3/Garrison | Discovered new exit (range 11) 5492 | -3/Garrison | Attempted to access garrison exit controls, blocked by remote lockdown 5539 | -3/Garrison | X0-1V1 activates XOMVISION 5625 | -3/Garrison | Triggered checkpoint 5626 | -3/Garrison | X0-1V1 destroyed Phase Generator 5626 | -3/Garrison | Phase Generator disabled 5661 | -3/Garrison | X0-1V1 vaporized surrounding terrain (radius 16) 5662 | -3/Garrison | Triggered checkpoint 5663 | -3/Garrison | X0-1V1 downgraded hostiles (x4) 5682 | -3/Garrison | Spotted Executioner 5682 | -3/Garrison | Spotted Executioner 5683 | -3/Garrison | Discovered new exit (range 11) 5689 | -3/Garrison | Entered Research 5706 | -3/Research | Discovered new exit (range 5) 5725 | -3/Research | Identified exit to Research 5726 | -3/Research | Entered another Research area 5726 | -2/Research | Evolved 2 slots: Utility x1, Weapon x1 5749 | -2/Research | Found Prototype Processor 5749 | -2/Research | Identified Exp. Core Analyzer 6004 | -2/Research | Build established: Scavenger-Gladiator 6068 | -2/Research | Spotted B-90 Cyclops 6069 | -2/Research | Identified exit to Garrison 6069 | -2/Research | Entered Garrison 6102 | -2/Garrison | X0-1V1 vaporized surrounding terrain (radius 19) 6103 | -2/Garrison | Found embedded Infiltrators 6103 | -2/Garrison | Triggered checkpoint 6104 | -2/Garrison | Spotted B-90 Cyclops 6111 | -2/Garrison | Released all parts (19) 6112 | -2/Garrison | Found Hvy. Scimitar of Distortion 6126 | -2/Garrison | Discovered new exit (range 14) 6137 | -2/Garrison | Triggered checkpoint 6149 | -2/Garrison | Core integrity fell below 50% 6161 | -2/Garrison | Identified exit to Research 6161 | -2/Garrison | X0-1V1 revealed exit location to -2/Research 6163 | -2/Garrison | Installed Relay Interface Framework 6168 | -2/Garrison | Forcibly received Sfc. Transmogifier from X0-1V1 6186 | -2/Garrison | Core integrity restored by X0-1V1 (+180) 6189 | -2/Garrison | Entered Research 6299 | -2/Research | Lost 3 parts (2u1w) 6358 | -2/Research | X0-1V1 activates XOMVISION 6400 | -2/Research | Build established: Mutant 6700 | -2/Research | Identified exit to Testing 6772 | -2/Research | Crushed by falling debris 6788 | -2/Research | Crushed by falling debris 6788 | -2/Research | Crushed by falling debris 6788 | -2/Research | System corruption reached 10% 6790 | -2/Research | Crushed by falling debris 6800 | -2/Research | X0-1V1 added 0b10 threat records associated with you (minor) 6813 | -2/Research | Crushed by falling debris 6844 | -2/Research | Lost 9 parts (1p1n6u1w) 6846 | -2/Research | Crushed by falling debris 6847 | -2/Research | Core integrity fell below 20% 6889 | -2/Research | System corruption reached 30% 6892 | -2/Research | X0-1V1 sent allied Executioner (x1) 6908 | -2/Research | Lost 3 parts (1n2w) 6986 | -2/Research | X0-1V1 mutated your Weapon slot to Propulsion slot 7040 | -2/Research | Released all parts (15) 7043 | -2/Research | Destroyed by Y-72 Warden with Enhanced Quantum Rifle Last Messages --------------- 07040_ Released X0-1V1's Piety Tracker. 07040_ Released Biometal Leg. 07040_ Released Lgt. Antimatter Reactor. 07040_ Released Sfc. Transmogrifier. 07040_ Released Adv. Sensor Array. 07040_ Released Target Analyzer. 07040_ Released Myomer Leg. 07040_ Released Med. Storage Unit. 07040_ Released Graviton Reactor. 07040_ Released Hds. Centrium Leg. 07040_ Released Adv. Myomer Leg. 07040_ Released Phase Gun. 07040_ Released Med. Treads. 07040_ Slug penetrates Wall. 07041_ X0-1V1 feels inspired! Y-72 Warden Quantum Rifle replaced by Enh. Quantum Rifle. Y-72 Warden Railgun replaced by Hyp. Railgun. X-87 Electro Com. HERF Cannon replaced by Prototype Energy Cannon. 07043_ Critical hit (Meltdown: +420). 07043_ X0-1V1 giggles madly! Map ----- +----------------------------------------------------+ | ????????????????????????????????????????????? | | ????????????????????????????????????????????? | | ????????????????????????????????????????????? | | ????????????????????????????????????????????? | | ????????????????????????????????????????????? | | ????????????????????????????????????????????? | | ????????????????????????????????????????????? | | ????????????????????????????????????????????? | | ????????????????????????????????????????????? | | ????????????????????????????????????????????? | | ????????????????????????????????????????????? | | ????????????????????????????????????????????? | | ????????????????????????????????????????????? | | ????????????????????????????????????????????? | | ?????????????????????########???????????????? | | ?????????????????????# #???????????????? | | ?????????????????????? #???????????????? | | ?????????????????????? +?????>?????????? | | ###########??????????? #???????????????? | | !! #???????????? ????????????????? | | !! #???????????? ?????????????????? | | ! ! #??????????###x###?????? ###??????? | | #??????????# x ##### #??????? | | ############[ T" #??????? | | ########+## !!=[[*==Y " !#??????? | | [###### @ #??????? | | " #????# ##### #??????? | | ^ #????### ###????????????????? | | ###+####### * #??????# #??????????????????? | | ?? ??????### ###??????# #??????????????????? | | ? ????????# #????????# #??????????????????? | | ""????????# #????????# #??????????????????? | | ""????????# #????????# #??????????????????? | | ""????????# #????????# #??????????????????? | | ?????????# #????????# #??????????????????? | | ?????????? ????????? ???????????????????? | | #??????????? ????????? ???????????????????? | | ???????????? ????????? ???????????????????? | | ???????????? ????????? ???????????????????? | | ???????????? ? ?????????#???????????????????? | | ???????????? ? ?????????????????????????????? | | ????????????????????????????????????????????? | | ????????????????????????????????????????????? | | ????????????????????????????????????????????? | | ????????????????????????????????????????????? | | ????????????????????????????????????????????? | | ????????????????????????????????????????????? | | ????????????????????????????????????????????? | | ????????????????????????????????????????????? | | ????????????????????????????????????????????? | +----------------------------------------------------+ Best States ------------- Heat Dissipation 86 Energy Generation 57 Energy Capacity 2010 Matter Stores 800 Matter Capacity 800 Sight Range 22 Robot Scan Range 16 Terrain Scan Range 18 Terrain Scan Density 10 Power Amplification 30 Armor Coverage 600 Resistance: KI 45 Resistance: EM 31 Evasion (%) 70 Targeting Accuracy 12 Melee Accuracy 22 Target Analysis 8 Core Analysis 9 Recoil Reduction 2 Offensive Hacking 20 Authchip Count 3 Item Schematics ----------------- Imp. Carbon-fiber Leg | -8/Recycling | Hacked Coil Gun | -8/Recycling | Hacked Cmb. Airjet | -6/Factory | Scanalyzed Robot Schematics ------------------ None Fabricated ------------ Imp. Carbon-fiber Leg | x2 | -6/Factory | Authchip Imp. Carbon-fiber Leg | x2 | -6/Factory | Authchip Repaired ---------- Lgt. Treads | 14% | -10/Materials Studied --------- None Alien Tech Used ----------------- None Achievements -------------- Late Bloomer Challenges ------------ None Game ------ Seed PersonalTerrabombLog Manual? 0 Play Time 01:02:14 Cumulative 976.6 hours Start 2026.07.14 @ 18:29:04 End 2026.07.14 @ 19:27:32 Sessions 1 Manual Loads 0 Difficulty Rogue Special Mode None Game No. 1660 Rogue 1660 Adventurer 0 Explorer 0 Win Type - Total 95 Types 56/1/16/16/4/0/0/1/0/1 Lore% 93 Gallery% 80 Achievement% 69 Wizard Run 0 Options --------- Layout 0 ASCII 1 Keyboard 0 Movement Numpad Keybinds 1 Fullscreen 2 Font 18/SmallcapsGlow Map View 76x50 Zoom Use 0% Tactical HUD 1 Map Filters NONE Filters NONE Steam 1 RUN: b22ac227-728d-47db-8fc6-d865964d5df7